bitfinex/quotes_ETHUSD_20260207
["timestamp","ask_amount","ask_price","bid_price","bid_amount"]
[1770483867200,1.017141,2046.1,2044.6,0.97093767]
[1770483867398,0.99273647,2046.1,2044.6,0.97093767]
[1770483867581,0.99273647,2046.1,2044.7,0.96993767]
[1770483867894,0.12680453,2046.4,2044.9,0.96993767]
[1770483868102,0.12680453,2046.4,2045.3,0.001]
[1770483868606,1.119541,2046.4,2045.3,0.001]
[1770483870079,0.02440453,2046.1,2045.3,0.001]
[1770483870291,1.119541,2046.4,2045.0,0.001]
[1770483870292,1.09513647,2046.2,2045.0,0.001]
[1770483870485,1.017141,2046.1,2045.0,0.001]
[1770483871802,0.99273647,2045.7,2045.0,0.001]
[1770483872372,0.99273647,2046.1,2045.0,0.001]
[1770483873900,1.09513647,2046.1,2045.0,0.001]
[1770483874221,0.99273647,2046.1,2045.0,0.001]
[1770483874504,1.09513647,2046.3,2045.0,0.97093767]
[1770483875268,1.09513647,2046.3,2045.0,0.001]
[1770483875483,0.97889425,2046.1,2045.0,0.001]
[1770483875689,0.02440453,2046.2,2045.0,0.001]
[1770483875690,0.97889425,2045.9,2045.0,0.001]
[1770483876732,0.1024,2046.1,2045.0,0.001]
[1770483877219,1.08129425,2046.1,2045.0,0.001]
[1770483877902,0.1024,2046.1,2045.0,0.91288161]
[1770483878111,1.00329878,2046.0,2045.0,0.001]
[1770483878615,0.97889425,2046.0,2045.0,0.001]
[1770483880128,0.97889425,2045.7,2043.8,7.69897134]
[1770483880430,0.97889425,2045.0,2043.8,0.25534111]
[1770483880724,0.97889425,2045.0,2043.2,0.91188161]
[1770483880725,4.1024,2045.5,2044.0,0.91188161]
[1770483880908,5.0,2045.5,2044.3,0.91188161]
[1770483881220,5.0,2045.5,2044.5,0.93628614]
[1770483881388,5.0,2045.5,2045.2,0.001]
[1770483881593,0.5,2045.4,2044.6,0.02440453]
[1770483882000,0.5,2045.4,2045.0,0.001]
[1770483882403,5.0,2045.5,2045.1,0.02440453]
[1770483882790,5.0,2045.5,2045.0,0.001]
[1770483883614,5.0,2045.5,2045.2,0.02440453]
[1770483883919,5.0,2045.5,2045.0,0.001]
[1770483884092,5.0,2045.5,2045.2,0.02440453]
[1770483884502,5.0,2045.5,2045.0,0.001]
[1770483884897,5.0,2045.5,2045.2,0.02440453]
[1770483885121,0.002,2046.0,2045.2,0.02440453]
[1770483885322,0.002,2046.0,2045.0,0.001]
[1770483885822,0.98089425,2046.0,2045.0,0.001]
[1770483889333,0.98089425,2046.0,2044.1,0.004]
[1770483889334,1.08129425,2045.8,2044.1,0.004]
[1770483889536,0.97889425,2045.6,2044.1,0.004]
[1770483890614,0.97889425,2045.4,2044.1,0.004]
[1770483891311,0.37264158,2045.8,2044.9,0.91188161]
[1770483891506,0.002,2046.0,2044.9,0.91188161]
[1770483891731,0.002,2046.0,2044.7,0.02440453]
[1770483891931,0.002,2046.0,2045.0,0.02440453]
[1770483892120,0.002,2046.0,2044.8,0.91188161]
[1770483892337,0.98089425,2046.0,2044.5,0.93628614]
[1770483892652,0.002,2046.0,2044.8,0.93628614]
[1770483892942,0.002,2046.0,2045.1,0.93628614]
[1770483893647,0.002,2046.0,2045.4,0.02440453]
[1770483894015,0.002,2046.0,2045.7,0.02440453]
[1770483894617,0.002,2046.2,2045.7,0.02440453]
[1770483894950,0.98089425,2047.1,2045.7,0.02440453]
[1770483895447,0.98089425,2047.1,2046.0,0.02440453]
[1770483895745,0.98089425,2047.1,2045.7,0.02440453]
[1770483896455,0.98089425,2047.1,2045.5,1.22214412]
[1770483896614,0.98089425,2047.1,2045.7,0.02440453]
[1770483897047,0.002,2047.1,2046.1,0.91188161]
[1770483897216,0.002,2047.1,2046.0,0.02440453]
[1770483897618,0.002,2047.1,2046.3,0.02440453]
[1770483898249,0.002,2047.1,2046.3,0.91188161]
[1770483898426,0.98089425,2047.1,2046.0,0.02440453]
[1770483898628,0.98089425,2047.1,2045.8,1.22201583]
[1770483898826,0.98089425,2047.1,2046.0,0.02440453]
[1770483899064,0.002,2047.1,2046.0,0.93628614]
[1770483899430,0.002,2047.1,2046.1,0.91188161]
[1770483899950,0.002,2047.1,2046.3,0.02440453]
[1770483900643,0.002,2047.3,2046.6,0.93628614]
[1770483902154,0.002,2047.3,2045.7,0.02440453]
[1770483902155,0.97889425,2047.1,2045.7,0.02440453]
[1770483902354,0.97889425,2046.7,2045.0,0.02440453]
[1770483902523,0.97889425,2046.5,2044.9,0.02440453]
[1770483902722,0.97889425,2046.2,2044.7,0.91188161]
[1770483902927,0.97889425,2046.0,2044.7,0.65324423]
[1770483903133,0.97889425,2046.0,2044.3,0.001]
[1770483903134,0.97889425,2045.6,2044.3,0.001]
[1770483903336,0.97889425,2045.4,2044.0,0.001]
[1770483903938,0.97889425,2045.2,2044.0,0.001]
[1770483905844,0.99334364,2045.8,2044.0,0.001]
[1770483906058,0.99334364,2045.2,2044.0,0.001]
[1770483906265,0.99334364,2045.2,2044.3,0.001]
[1770483908167,0.99334364,2045.7,2044.4,0.02440453]
[1770483908360,0.99334364,2045.7,2044.3,0.001]
[1770483908958,0.99334364,2045.7,2044.4,0.02440453]
[1770483909302,0.99334364,2045.7,2044.5,0.02440453]
[1770483909458,1.04026796,2046.1,2044.5,0.93089169]
[1770483909656,1.04026796,2046.1,2044.5,0.02440453]
[1770483910565,0.93786796,2046.1,2044.8,0.02440453]
[1770483910866,0.93786796,2046.1,2045.1,0.02440453]
[1770483911664,0.93786796,2046.1,2044.9,0.02440453]
[1770483911842,0.93786796,2046.1,2044.7,0.02440453]
[1770483912242,0.93786796,2046.1,2045.0,0.02440453]
[1770483912437,0.93786796,2046.1,2044.7,0.02440453]
[1770483912642,0.2335703,2046.6,2044.5,0.02440453]
[1770483912643,0.93786796,2045.9,2044.5,0.02440453]
[1770483912869,0.93786796,2045.9,2044.3,0.001]
[1770483913965,0.93786796,2045.7,2044.3,0.001]
[1770483914298,0.93786796,2045.6,2044.3,0.001]
[1770483915157,0.1024,2045.9,2044.5,0.02440453]
[1770483915359,0.93786796,2046.3,2045.1,0.02440453]
[1770483915563,0.93786796,2046.3,2044.8,0.93089169]
[1770483915564,0.93786796,2046.3,2044.5,0.02440453]
[1770483915766,0.1024,2046.0,2044.5,0.02440453]
[1770483915971,0.93786796,2045.9,2044.5,0.02440453]
[1770483916283,0.93786796,2045.9,2044.3,0.001]
[1770483917452,0.93786796,2045.7,2044.3,0.001]
[1770483917769,0.2335703,2045.8,2044.3,0.001]
[1770483917770,0.93786796,2045.3,2044.3,0.001]
[1770483921296,0.2335703,2045.6,2044.3,0.001]
[1770483921463,0.93986796,2045.7,2044.3,0.001]
[1770483921864,0.93986796,2045.7,2044.3,0.02540453]
[1770483922084,0.93986796,2045.7,2044.3,0.001]
[1770483923386,0.93986796,2045.7,2044.4,0.02440453]
[1770483923592,1.17143826,2045.6,2044.3,0.001]
[1770483923904,0.93786796,2045.0,2044.3,0.001]
[1770483925297,0.93786796,2044.8,2044.2,0.001]
[1770483925463,0.93786796,2044.6,2043.1,0.003]
[1770483926297,0.93786796,2044.4,2043.1,0.003]
[1770483927578,0.93786796,2044.2,2043.1,0.003]
[1770483927971,0.93786796,2044.0,2043.1,0.003]
[1770483929494,0.93786796,2044.4,2043.1,0.003]
[1770483929700,0.93786796,2044.4,2043.2,0.02440453]
[1770483929870,0.93786796,2044.4,2043.1,0.003]
[1770483930279,0.93786796,2044.4,2043.2,0.02440453]
[1770483930802,0.93786796,2044.2,2043.1,0.003]
[1770483931011,0.93786796,2044.0,2043.1,0.003]
[1770483931178,0.93786796,2044.3,2043.1,0.003]
[1770483931375,0.93786796,2044.3,2043.3,0.001]
[1770483932395,0.93786796,2044.1,2043.1,0.003]
[1770483934211,0.93786796,2043.9,2043.1,0.003]
[1770483936311,0.2335703,2044.2,2043.1,0.003]
[1770483936502,0.93764639,2044.4,2043.1,0.003]
[1770483936826,0.93764639,2044.4,2043.1,0.91156413]
[1770483936986,0.93764639,2044.4,2043.1,0.003]
[1770483937184,0.1024,2044.7,2043.1,0.003]
[1770483937185,0.93764639,2044.2,2043.1,0.003]
[1770483940707,0.1024,2044.7,2043.1,0.003]
[1770483940708,1.04004639,2044.7,2043.1,0.91156413]
[1770483941510,0.93764639,2044.7,2043.1,0.91156413]
[1770483941718,0.93764639,2044.6,2043.1,0.91156413]
[1770483941916,0.93764639,2044.6,2043.1,0.003]
[1770483942092,0.93764639,2044.4,2043.1,0.003]
[1770483943218,0.93764639,2044.4,2043.1,0.91156413]
[1770483943990,0.2335703,2044.7,2043.1,0.91156413]
[1770483944191,1.17121669,2044.7,2043.1,0.91156413]
[1770483944616,1.17121669,2044.7,2043.3,0.001]
[1770483944800,0.002,2044.2,2043.3,0.001]
[1770483945619,0.002,2044.2,2043.3,0.90956413]
[1770483945987,0.002,2044.2,2043.3,0.001]
[1770483947024,0.93964639,2044.2,2043.3,0.001]
[1770483947813,0.93764639,2044.0,2043.3,0.001]
[1770483948328,0.2355703,2044.2,2043.4,0.90856413]
[1770483948329,0.002,2044.2,2043.4,0.90856413]
[1770483948628,0.002,2044.2,2043.3,0.001]
[1770483949329,0.002,2044.2,2043.1,0.89206413]
[1770483950209,0.002,2044.2,2043.3,0.90856413]
[1770483952102,0.93964639,2044.2,2043.1,0.02440453]
[1770483952301,0.93964639,2044.2,2042.9,0.90856413]
[1770483953303,0.93964639,2044.2,2042.7,0.02440453]
[1770483953616,0.93964639,2044.2,2042.8,0.90856413]
[1770483955433,0.93964639,2044.2,2042.7,1.88000631]
[1770483955630,0.93764639,2044.0,2042.7,1.88000631]
[1770483955820,0.93764639,2044.0,2042.7,2.78857044]
[1770483956023,0.002,2044.2,2042.9,0.93296866]
[1770483956334,0.002,2044.2,2042.9,0.90856413]
[1770483957600,0.93964639,2044.2,2042.9,0.90856413]
[1770483958027,0.93964639,2044.2,2042.8,0.93296866]
[1770483958234,0.93964639,2044.2,2042.9,0.2812975]
[1770483960117,0.002,2044.2,2043.0,0.90856413]
[1770483960331,0.002,2044.2,2043.0,0.93296866]
[1770483960644,0.002,2044.2,2043.2,0.90856413]
[1770483960846,0.002,2044.2,2043.3,0.90856413]
[1770483961040,0.002,2044.2,2043.4,0.47385641]
[1770483961746,0.002,2044.2,2043.3,0.90856413]
[1770483962450,0.002,2044.0,2043.3,0.90856413]
[1770483963019,0.002,2044.0,2043.4,0.02440453]
[1770483963219,0.002,2044.0,2043.4,0.93296866]
[1770483963627,0.002,2044.0,2043.4,0.90856413]
[1770483964432,0.002,2044.0,2043.1,2.13219488]
[1770483964823,0.002,2044.0,2043.3,0.93296866]
[1770483966454,0.002,2044.0,2043.0,0.91838839]
[1770483966654,0.90576917,2044.0,2042.9,0.02440453]
[1770483967635,0.90576917,2044.0,2042.9,0.94279292]
[1770483967829,0.002,2044.0,2043.0,0.91838839]
[1770483968065,0.002,2044.0,2043.3,0.91838839]
[1770483968230,0.002,2044.0,2043.0,0.91838839]
[1770483968435,0.90576917,2044.0,2042.9,0.02440453]
[1770483968656,0.90576917,2044.0,2042.8,0.001]
[1770483968864,0.002,2044.0,2043.2,0.02440453]
[1770483969035,0.002,2044.0,2043.2,0.94279292]
[1770483970654,0.90576917,2044.0,2042.8,0.40576818]
[1770483970968,0.90576917,2044.0,2042.8,0.001]
[1770483971467,0.96333384,2043.8,2042.8,0.001]
[1770483973873,0.002,2044.0,2042.9,0.9332329]
[1770483974257,0.96533384,2044.0,2042.9,0.9332329]
[1770483975147,0.96533384,2044.0,2043.0,0.001]
[1770483975342,0.002,2043.8,2043.0,0.9342329]
[1770483975544,0.002,2043.8,2043.0,0.001]
[1770483975740,0.96533384,2043.8,2043.0,0.001]
[1770483977652,0.002,2043.8,2043.0,0.9342329]
[1770483977858,0.96533384,2043.8,2043.0,0.001]
[1770483985571,0.002,2043.8,2043.0,0.9342329]
[1770483986672,0.002,2043.8,2043.1,1.415]
[1770483988471,0.002,2043.8,2043.2,0.001]
[1770483988688,0.002,2043.6,2043.2,0.001]
[1770483990664,0.96533384,2043.6,2042.1,0.02740453]
[1770483990866,0.96533384,2043.6,2042.1,1.14688512]
[1770483991090,0.0426,2042.2,2041.7,0.08319942]
[1770483991390,0.96333384,2043.2,2041.8,0.93838328]
[1770483991584,0.96333384,2043.2,2041.9,1.425]
[1770483992361,0.96333384,2043.1,2042.1,0.4901]
[1770483992564,0.96333384,2042.8,2042.1,0.4901]
[1770483992762,0.46254454,2042.8,2041.8,1.424]
[1770483992958,0.46254454,2042.8,2040.6,10.08009361]
[1770483992959,0.96333384,2042.7,2041.0,0.93838328]
[1770483993163,0.1024,2042.4,2040.3,0.67528466]
[1770483993360,0.93838328,2041.0,2040.0,0.02440453]
[1770483993580,0.96333384,2041.4,2039.9,5.17989074]
[1770483993760,0.96333384,2041.4,2040.1,0.02440453]
[1770483993972,0.96333384,2041.4,2040.2,0.02440453]
[1770483994294,0.96333384,2041.4,2040.5,0.02440453]
[1770483994500,0.96333384,2041.8,2040.9,0.02440453]
[1770483994792,0.96333384,2042.1,2040.9,0.02440453]
[1770483994957,0.96333384,2042.0,2041.0,0.02440453]
[1770483995359,0.96333384,2042.0,2041.1,1.45440453]
[1770483995719,0.96333384,2042.0,2040.7,0.02440453]
[1770483996207,0.96333384,2042.0,2040.8,1.43]
[1770483996372,0.94794721,2041.8,2040.3,0.02440453]
[1770483996572,0.94794721,2041.8,2040.4,1.43]
[1770483996782,0.94794721,2041.6,2040.0,0.41679813]
[1770483997104,0.94794721,2041.4,2040.5,0.02440453]
[1770483997405,0.94794721,2041.4,2040.2,0.02440453]
[1770483997571,0.94794721,2041.4,2040.0,0.02440453]
[1770483997967,0.94794721,2041.1,2039.7,0.02440453]
[1770483998196,0.94794721,2041.1,2040.3,0.02440453]
[1770483998398,0.94794721,2041.4,2040.3,0.02440453]
[1770483998697,0.94794721,2041.4,2040.0,0.02440453]
[1770483998901,0.94794721,2041.4,2040.0,0.95428558]
[1770483999207,0.94794721,2041.2,2039.7,0.92988105]
[1770483999405,0.94794721,2041.2,2040.0,0.02440453]
[1770483999701,0.94794721,2041.2,2039.9,0.02440453]
[1770484000001,0.94794721,2041.2,2039.5,0.02440453]
[1770484000184,0.94794721,2041.2,2039.8,0.02440453]
[1770484000807,0.94794721,2041.2,2040.1,0.02440453]
[1770484001005,0.94794721,2041.6,2040.1,0.02440453]
[1770484001178,0.94794721,2041.6,2040.1,0.02540453]
[1770484001607,0.94794721,2041.4,2040.1,0.001]
[1770484001779,0.94794721,2041.4,2040.2,0.02440453]
[1770484001980,0.94794721,2041.4,2040.1,0.001]
[1770484002570,0.94794721,2041.2,2040.1,0.001]
[1770484003105,0.94794721,2041.0,2040.1,0.001]
[1770484003323,0.94794721,2041.0,2039.3,0.02440453]
[1770484004302,0.94794721,2040.8,2039.4,0.02440453]
[1770484004625,0.49479472,2040.7,2039.4,0.02440453]
[1770484004990,1.44274193,2040.7,2039.4,0.02440453]
[1770484005285,1.44274193,2040.7,2039.7,0.02440453]
[1770484005487,0.94794721,2040.7,2039.8,0.02440453]
[1770484005715,0.94794721,2040.7,2039.4,0.02440453]
[1770484006097,0.94794721,2040.7,2038.8,0.02440453]
[1770484006301,0.94794721,2040.5,2039.1,0.02440453]
[1770484006820,1.05034721,2040.9,2039.4,0.95428558]
[1770484006987,1.05034721,2040.9,2039.1,0.95428558]
[1770484007191,0.94794721,2040.5,2039.1,0.95428558]
[1770484007422,0.94794721,2040.5,2039.1,0.92988105]
[1770484007599,0.94794721,2040.5,2039.2,0.02440453]
[1770484008207,0.94794721,2040.5,2038.9,1.03648838]
[1770484008208,0.94794721,2040.3,2038.9,1.03648838]
[1770484008422,0.94794721,2040.1,2038.3,6.43077776]
[1770484008720,0.94794721,2039.9,2038.4,0.02440453]
[1770484008924,0.94794721,2039.7,2038.1,0.25593119]
[1770484009128,0.94794721,2039.7,2037.7,1.38753602]
[1770484009329,4.0,2039.8,2038.3,0.02440453]
[1770484009330,0.94794721,2039.5,2038.3,0.02440453]
[1770484010040,0.49479472,2039.6,2038.3,0.95428558]
[1770484010196,0.94794721,2039.5,2038.0,0.02440453]
[1770484010521,0.94794721,2039.5,2038.1,0.95428558]
[1770484010895,0.1024,2040.0,2038.2,0.95428558]
[1770484011118,0.94794721,2040.0,2038.5,0.02440453]
[1770484011726,0.94794721,2040.0,2038.6,0.02440453]
[1770484011932,0.94794721,2039.9,2038.2,0.95428558]
[1770484012096,0.94794721,2039.9,2038.5,0.02440453]
[1770484012290,0.94794721,2039.8,2038.2,0.95428558]
[1770484012493,0.1024,2039.1,2037.7,0.1362709]
[1770484012697,0.94794721,2039.0,2037.7,0.1362709]
[1770484013535,0.94794721,2038.8,2037.7,0.1362709]
[1770484014012,0.78688682,2039.5,2037.8,0.95428558]
[1770484014013,0.38166024,2039.5,2037.8,0.95428558]
[1770484014328,0.02440453,2040.2,2038.4,0.02440453]
[1770484014329,0.94794721,2039.7,2038.4,0.02440453]
[1770484014530,0.94794721,2039.7,2038.3,0.001]
[1770484014698,0.94794721,2039.5,2038.3,0.001]
[1770484015622,0.94794721,2039.5,2038.4,0.02440453]
[1770484015802,0.94794721,2039.5,2038.3,0.001]
[1770484016620,0.02440453,2039.2,2038.3,0.001]
[1770484017210,0.97235174,2039.2,2038.3,0.001]
[1770484017410,0.1024,2039.6,2038.3,0.93088105]
[1770484017615,0.94794721,2039.4,2038.3,0.001]
[1770484019126,0.94794721,2038.9,2038.0,0.001]
[1770484019325,0.94794721,2038.9,2038.1,0.001]
[1770484019622,0.94794721,2038.7,2037.5,0.02440453]
[1770484019802,0.94794721,2038.7,2037.2,0.02440453]
[1770484019803,0.94794721,2038.7,2037.2,0.95428558]
[1770484020008,0.94794721,2038.6,2037.2,0.95428558]
[1770484020210,0.94794721,2038.6,2037.2,0.02440453]
[1770484020511,0.94794721,2038.6,2037.5,0.02440453]
[1770484020708,0.94794721,2038.6,2037.2,1.428]
[1770484021026,0.94794721,2038.6,2037.2,1.45240453]
[1770484021215,0.94794721,2038.4,2036.8,0.92988105]
[1770484021520,1.18151751,2038.5,2036.9,0.95428558]
[1770484021827,0.94794721,2038.5,2037.0,0.95428558]
[1770484022221,0.94794721,2038.4,2037.0,1.428]
[1770484022522,0.94794721,2038.4,2037.1,0.02440453]
[1770484022725,0.1024,2038.6,2037.1,0.95428558]
[1770484023029,0.94794721,2038.5,2037.1,0.95428558]
[1770484023326,0.94794721,2038.5,2037.4,0.02440453]
[1770484023501,0.94794721,2038.5,2037.2,1.428]
[1770484023702,0.94794721,2038.5,2037.3,0.02440453]
[1770484024127,1.22592279,2039.3,2037.3,0.02440453]
[1770484024128,0.02440453,2039.9,2038.2,0.92988105]
[1770484024299,0.94794721,2038.9,2037.0,0.02440453]
[1770484024504,0.94794721,2038.4,2037.0,0.92988105]
[1770484024705,0.94794721,2038.4,2037.0,2.15714418]
[1770484025221,0.94794721,2038.4,2037.2,0.02440453]
[1770484025601,0.93745493,2038.7,2037.2,1.00263387]
[1770484025802,0.93745493,2038.2,2036.7,0.09065377]
[1770484026027,0.93745493,2037.8,2036.7,0.09065377]
[1770484026958,0.93745493,2038.2,2036.9,0.02440453]
[1770484027115,0.93745493,2038.2,2036.7,1.06888311]
[1770484027116,0.2335703,2038.1,2036.8,0.02440453]
[1770484027431,1.61437834,2038.5,2036.8,1.00263387]
[1770484027606,0.1024,2038.3,2036.8,1.00263387]
[1770484027806,1.03985493,2038.3,2036.8,1.00263387]
[1770484028030,1.03985493,2038.3,2036.9,0.02440453]
[1770484028437,0.1024,2038.6,2037.3,0.02440453]
[1770484028840,1.03985493,2038.6,2037.0,1.00263387]
[1770484029145,0.93745493,2038.4,2036.9,0.02540453]
[1770484029638,0.93745493,2038.4,2037.2,0.02440453]
[1770484029850,0.93745493,2038.4,2036.9,1.00363387]
[1770484030342,0.93745493,2038.4,2037.1,0.02440453]
[1770484030636,0.66155356,2039.2,2037.3,0.02440453]
[1770484030637,0.93745493,2038.8,2037.3,0.02440453]
[1770484030832,0.93745493,2038.8,2037.3,0.9801388]
[1770484031535,0.93745493,2038.8,2037.4,0.95573427]
[1770484031738,0.93654361,2039.4,2037.9,0.02440453]
[1770484031922,0.93654361,2039.4,2037.6,0.9801388]
[1770484032126,0.93654361,2039.4,2037.9,0.02440453]
[1770484032312,0.93654361,2039.8,2038.2,0.02440453]
[1770484032516,0.93654361,2039.8,2038.2,0.9801388]
[1770484033116,0.93654361,2039.8,2038.2,0.95573427]
[1770484033324,0.93654361,2039.4,2037.7,0.95573427]
[1770484033552,0.93654361,2039.4,2037.4,0.95573427]
[1770484033753,0.93654361,2039.2,2037.4,0.95573427]
[1770484034265,0.93654361,2039.1,2037.4,0.9801388]
[1770484034555,1.72367443,2039.1,2037.4,0.9801388]
[1770484034762,0.93654361,2039.0,2037.7,0.02440453]
[1770484034947,0.78713082,2039.2,2038.5,0.95573427]
[1770484035261,0.93854361,2039.9,2038.0,1.22666244]
[1770484035465,0.93654361,2039.7,2037.6,0.02440453]
[1770484035650,0.02440453,2038.9,2037.4,0.95573427]
[1770484036032,0.96094814,2039.2,2037.4,0.95573427]
[1770484036360,0.02440453,2038.9,2037.4,0.95573427]
[1770484036525,0.02440453,2038.6,2037.4,0.95573427]
[1770484037156,0.02440453,2038.9,2037.4,0.95573427]
[1770484038353,0.96094814,2039.2,2037.4,0.95573427]
[1770484038846,0.93654361,2038.8,2037.1,5.64283411]
[1770484039031,0.93654361,2038.8,2037.3,0.95573427]
[1770484040561,0.96094814,2039.2,2037.3,0.9801388]
[1770484041056,0.93654361,2039.2,2037.4,1.22705408]
[1770484041262,0.93654361,2039.2,2037.5,0.95573427]
[1770484041737,0.02440453,2039.5,2037.6,0.02440453]
[1770484041738,0.96094814,2039.5,2037.6,0.02440453]
[1770484041942,0.002,2039.0,2037.7,0.95573427]
[1770484042138,0.002,2039.0,2037.9,0.9801388]
[1770484042334,0.002,2039.0,2037.9,0.95573427]
[1770484042655,0.002,2039.0,2037.9,0.9801388]
[1770484043048,0.002,2039.0,2037.9,0.95573427]
[1770484043229,0.002,2039.0,2038.0,0.28448044]
[1770484043428,0.002,2039.0,2037.8,0.95573427]
[1770484043629,0.002,2039.0,2037.8,0.89573427]
[1770484043833,0.002,2039.0,2037.2,0.02440453]
[1770484043834,0.93654361,2038.7,2037.0,0.95573427]
[1770484044442,0.1024,2038.8,2037.0,0.95573427]
[1770484044640,0.93654361,2038.7,2037.0,0.95573427]
[1770484045061,0.02440453,2038.9,2037.0,0.95573427]
[1770484045366,0.93654361,2038.5,2036.9,0.001]
[1770484045962,0.96094814,2038.2,2036.9,0.001]
[1770484046364,0.93654361,2038.1,2036.9,0.001]
[1770484046882,0.02440453,2038.2,2036.9,0.001]
[1770484046883,0.93654361,2037.8,2036.9,0.001]
[1770484047163,0.02440453,2037.3,2035.6,0.95573427]
[1770484047464,0.2335703,2037.5,2035.8,0.95573427]
[1770484047664,0.93654361,2037.4,2035.8,0.95573427]
[1770484047969,0.93654361,2037.2,2035.8,0.95573427]
[1770484048263,0.93654361,2037.2,2035.4,2.50273427]
[1770484048467,0.93654361,2037.0,2035.5,1.2060077]
[1770484049036,0.93654361,2037.0,2035.5,0.25027343]
[1770484049759,0.96094814,2036.9,2035.5,0.25027343]
[1770484049950,0.96094814,2036.9,2035.4,0.95573427]
[1770484050133,0.93654361,2036.9,2035.0,0.25610857]
[1770484050346,0.93654361,2036.9,2035.1,0.95573427]
[1770484050554,0.93654361,2036.9,2035.2,2.20849044]
[1770484050858,0.49365436,2037.1,2035.3,0.95573427]
[1770484051030,0.49365436,2037.1,2035.5,0.02440453]
[1770484051236,0.93654361,2036.6,2034.6,0.24391168]
[1770484051432,0.93654361,2036.6,2035.0,0.02440453]
[1770484051937,0.93654361,2036.6,2034.8,0.95573427]
[1770484052562,0.93654361,2036.4,2034.8,0.95573427]
[1770484052862,0.93654361,2036.3,2035.2,0.02440453]
[1770484053066,0.93654361,2037.0,2035.5,0.02440453]
[1770484053370,0.93654361,2037.0,2035.2,0.02440453]
[1770484053665,0.93654361,2037.0,2035.8,0.02440453]
[1770484053864,0.49365436,2037.1,2035.8,0.9801388]
[1770484054565,0.93654361,2038.1,2036.3,0.02440453]
[1770484054745,0.1024,2038.0,2036.3,0.02440453]
[1770484054948,0.93654361,2037.9,2036.3,0.02440453]
[1770484056138,0.93654361,2037.9,2036.0,0.02440453]
[1770484056455,0.93654361,2037.9,2036.0,1.00931829]
[1770484056656,0.91353966,2037.6,2036.0,0.98491376]
[1770484056861,0.91353966,2037.6,2035.8,0.02440453]
[1770484057164,0.91353966,2037.6,2035.9,0.98491376]
[1770484058346,0.91353966,2037.6,2035.8,0.689531]
[1770484058347,0.2335703,2037.5,2035.8,0.689531]
[1770484058563,0.2335703,2037.9,2035.9,0.02440453]
[1770484058564,0.91353966,2037.4,2035.9,0.02440453]
[1770484058888,0.91353966,2037.4,2035.6,1.00931829]
[1770484059179,0.91353966,2037.0,2035.0,0.02540453]
[1770484059375,0.91353966,2036.8,2035.0,0.02540453]
[1770484059548,0.91353966,2036.8,2035.0,0.001]
[1770484059754,0.91353966,2036.6,2035.0,0.001]
[1770484060162,0.91353966,2036.4,2035.0,0.001]
[1770484060365,0.91353966,2036.4,2034.5,1.25320765]
[1770484060366,0.91353966,2036.2,2034.3,0.25619432]
[1770484060543,0.91353966,2036.0,2034.3,1.36395339]
[1770484060742,0.91353966,2035.8,2034.3,1.10775907]
[1770484060983,0.91353966,2035.8,2034.0,0.98491376]
[1770484061277,0.91353966,2035.8,2034.3,1.22887987]
[1770484061456,0.3359703,2036.2,2034.5,0.02440453]
[1770484061457,0.91353966,2036.2,2034.5,0.02440453]
[1770484061770,0.91353966,2036.2,2034.5,1.00931829]
[1770484061973,0.91353966,2036.2,2034.5,0.98491376]
[1770484062349,0.91353966,2036.2,2034.7,0.02440453]
[1770484062570,0.91353966,2036.6,2034.8,0.98491376]
[1770484062759,0.91353966,2036.6,2035.0,0.98491376]
[1770484063473,0.91353966,2036.6,2034.9,0.78808269]
[1770484063783,0.12680453,2036.8,2034.1,5.64283411]
[1770484063784,0.93794419,2036.2,2034.1,5.64283411]
[1770484063947,0.91353966,2036.0,2034.4,0.02440453]
[1770484064344,0.93794419,2036.8,2035.0,0.02440453]
[1770484064573,0.91353966,2037.0,2035.0,0.02440453]
[1770484064777,0.91353966,2036.5,2035.0,0.68958606]
[1770484064977,0.91353966,2036.5,2034.7,0.98491376]
[1770484065280,0.91353966,2036.1,2034.6,5.64283411]
[1770484065671,0.91353966,2035.9,2034.6,5.64283411]
[1770484065877,0.3359703,2036.1,2034.7,0.56428341]
[1770484066045,0.91353966,2036.0,2034.7,0.56428341]
[1770484066748,0.91353966,2036.7,2034.8,1.22862197]
[1770484067080,0.91353966,2036.7,2034.7,0.58868794]
[1770484067286,0.02440453,2035.8,2033.6,0.1362709]
[1770484067470,0.02440453,2036.2,2034.2,0.02440453]
[1770484067674,5.19740453,2038.3,2035.2,0.02440453]
[1770484067971,1.9059775,2039.0,2036.0,0.98491376]
[1770484067972,0.91353966,2037.8,2036.0,0.98491376]
[1770484068150,0.25645334,2037.6,2036.0,0.98491376]
[1770484068477,1.25102157,2038.2,2035.8,0.98491376]
[1770484068478,0.91353966,2038.1,2035.8,0.98491376]
[1770484068651,0.91353966,2037.7,2035.7,0.98491376]
[1770484068850,0.91353966,2037.7,2035.9,0.98491376]
[1770484069065,0.91353966,2037.7,2036.1,6.62774787]
[1770484069260,0.93794419,2037.6,2036.1,5.64283411]
[1770484069484,0.93794419,2037.6,2035.8,0.66521524]
[1770484069985,0.93794419,2037.6,2035.8,1.650129]
[1770484070282,0.91353966,2037.6,2035.8,1.8932337]
[1770484070474,0.91353966,2037.6,2035.9,0.2902552]
[1770484070672,0.91353966,2037.6,2035.9,1.27516896]
[1770484071077,0.91353966,2037.6,2035.9,0.2902552]
[1770484071272,0.91353966,2037.6,2035.8,0.66521524]
[1770484071878,0.91353966,2037.6,2035.8,1.650129]
[1770484072078,0.002,2037.7,2035.9,0.98491376]
[1770484072278,0.91553966,2037.7,2035.9,0.98491376]
[1770484072991,0.91553966,2037.7,2035.9,1.00931829]
[1770484073291,0.91553966,2037.7,2036.0,0.29025305]
[1770484073665,0.91353966,2037.5,2036.0,1.27516681]
[1770484073891,0.002,2037.7,2036.1,0.98491376]
[1770484074091,0.91553966,2037.7,2036.1,0.98491376]
[1770484074295,0.002,2037.7,2036.3,0.98491376]
[1770484074592,0.002,2037.7,2036.7,0.98491376]
[1770484075387,0.002,2037.7,2036.8,0.02440453]
[1770484075564,0.002,2037.7,2036.9,0.98491376]
[1770484075959,0.002,2037.7,2037.0,1.00931829]
[1770484076164,0.002,2037.7,2037.2,0.98491376]
[1770484076360,0.002,2037.7,2037.3,0.66277479]
[1770484076687,0.91353966,2038.9,2037.3,0.66277479]
[1770484077677,0.91353966,2038.9,2037.3,1.88984319]
[1770484077878,0.002,2039.0,2037.6,6.62774787]